Cogmind - Beta 17 @@@ ROGUE MODE // 2026.07.15 @ 13:35:45 Player: JoshuaCF Result: Destroyed by IY-JLP(R) with Subdweller Beam Cannon Performance ------------- Evolutions (0) 0 Regions Visited (2) 400 Robots Destroyed (27) 135 Value Destroyed (729) 729 Prototype IDs (2) 40 Alien Tech Used (0) 0 Bonus (0) 0 TOTAL SCORE: 1304 Bonus ------- None Cogmind --------- Core Integrity 0/250 Matter 300/300 Energy 200/200 System Corruption 0% Temperature Cool (9) Movement Walking (120) Location -10/Subcaves Parts ------- > --- POWER (1) -------- Subdweller Power Source > --- PROPULSION (2) --- Aluminum Leg > --- UTILITY (2) ------ Subdweller Optics > --- WEAPON (2) ------- (None) > --- INVENTORY (5) ---- Light Ion Engine Subdweller Laser Beam Cannon Subdweller Shrapnel Launcher Scrap Shield Fragment (47) Peak State ------------ > --- POWER ------------ Subdweller Power Source > --- PROPULSION ------- Aluminum Leg Improved Aluminum Leg > --- UTILITY ---------- Improved Heat Sink Small Storage Unit > --- WEAPON ----------- Small Laser Particle Gun > --- INVENTORY -------- Ion Engine Light Ion Engine Aluminum Leg Aluminum Leg Aluminum Leg Subdweller Optics Beam Cannon Subdweller Machine Gun [Rating: 13] Favorites ----------- Power Ion Engine Engine Ion Engine Propulsion Aluminum Leg Leg Aluminum Leg Utility Small Storage Unit Device Improved Heat Sink Storage Small Storage Unit Weapon Small Laser Energy Gun Small Laser Energy Cannon Beam Cannon Ballistic Gun Light Assault Rifle Build | -11 -10 -10 ------- Run | Yrd Mat Sub Slots Evolved . | . . . Power . | . . . Propulsion . | . . . Utility . | . . . Weapon . | . . . Parts Attached 23 | 6 11 6 Power 6 | 1 4 1 Engine 6 | 1 4 1 Core . | . . . Reactor . | . . . Propulsion 7 | 2 4 1 Treads . | . . . Leg 7 | 2 4 1 Wheel . | . . . Hover . | . . . Flight . | . . . Utility 3 | 1 1 1 Device 2 | . 1 1 Storage 1 | 1 . . Processor . | . . . Hackware . | . . . Protection . | . . . Artifact . | . . . Weapon 7 | 2 2 3 Energy Gun 4 | 1 2 1 Energy Cannon 1 | . . 1 Ballistic Gun 2 | 1 . 1 Ballistic Cannon . | . . . Launcher . | . . . Special Weapon . | . . . Impact Weapon . | . . . Slashing Weapon . | . . . Piercing Weapon . | . . . Special Melee Weapon . | . . . Unidentified Prototypes . | . . . Parts Lost 6 | . 1 5 Power . | . . . Propulsion 3 | . 1 2 Utility 1 | . . 1 Weapon 2 | . . 2 Highest Loss Streak 4 | . 1 4 To Critical Strikes . | . . . Average Backups 6 | 2 7 6 Power 2 | . 2 2 Propulsion 2 | 2 3 1 Utility . | . . . Weapon 1 | . 1 2 Tool/Special . | . . . Unused Backups 12 | . 9 3 Power 2 | . 1 1 Propulsion 7 | . 7 . Utility 1 | . 1 . Weapon 2 | . . 2 Tool/Special . | . . . Average Slot Usage (%) 89 | . 97 79 Engine 13 | . 13 14 Leg 23 | . 27 18 Device 8 | . 12 4 Storage 13 | . 14 13 Energy Gun 21 | . 24 17 Energy Cannon 4 | . . 9 Ballistic Gun 2 | . 3 . Peak Build Rating 13 | 6 12 13 Average Rating 9 | 4 10 8 On Entrance 5 | . 6 11 Avg Prop Armor Cover (%) . | . . . Naked Turns . | . . . Heaviest Build 19 | 13 15 19 Greatest Support 26 | 20 26 23 Greatest Overweight (x) 4 | 4 1 1 Average Overweight (x) . | 1 . . Largest Inventory Capacity 8 | 8 8 8 Average Capacity 7 | 7 8 7 Most Carried 8 | 6 8 8 Average Carried 7 | 3 7 6 Final Capacity 8 | 8 8 5 Final Carried 8 | 6 8 5 Class Distribution -------------------- 80% | Mutant 19% | Scavenger-Mutant Dominant Class ---------------- Mutant | -10/Materials Mutant | -10/Subcaves Resources | -11 -10 -10 ----------- Run | Yrd Mat Sub Matter Collected 688 | 260 345 83 Remotely . | . . . Salvage Created 874 | . 639 235 Parts 39 | . 30 9 Haulers Intercepted . | . . . Recyclers Shooed 1 | . 1 . Parts Field Recycled . | . . . Retrieved Matter . | . . . Parts Self-Destructed 9 | . . 9 Prevented . | . . . Parts Restored . | . . . Kills | -11 -10 -10 ------- Run | Yrd Mat Sub Combat Hostiles Destroyed 19 | . 12 7 Guns 17 | . 11 6 Cannons 1 | . . 1 Classes Destroyed 8 | . 5 3 Worker 2 | . 2 . Builder 1 | . 1 . Recycler 1 | . 1 . Turret 2 | . . 2 Watcher 2 | . 2 . Swarmer 3 | . . 3 Grunt 12 | . 12 . Subdweller 4 | . . 4 Best Kill Streak 3 | . 3 3 Combat Bots Only 3 | . 2 3 Max Kills in Single Turn 2 | . 1 2 Gunslinging . | . . . Exploded . | . . . Melee . | . . . Uniques/NPCs Destroyed . | . . . Combat | -11 -10 -10 -------- Run | Yrd Mat Sub Hostile Shots Fired 180 | . 64 116 Missed 65 | . 24 41 Hits 115 | . 40 75 Projectile 115 | . 40 75 Damage Taken 1190 | . 463 727 Core 269 | . 101 168 Absorbed by Shields . | . . . Regen/Repaired (Parts) 1 | . 1 . Core Remaining (%) 100 | 100 . . Volleys Fired 92 | . 58 34 Largest 2 | . 2 2 Hottest 120 | . 105 120 Shots Fired 181 | . 114 67 Gun 169 | . 114 55 Cannon 12 | . . 12 Launcher . | . . . Special . | . . . Kinetic 32 | . 23 9 Thermal 149 | . 91 58 Explosive . | . . . Electromagnetic . | . . . Robot Hit Streak 19 | . 19 16 Robot Miss Streak 4 | . 4 4 Penetration Max . | . . . Secondary Targets 1 | . . 1 Max Gunslinging Chain 1 | . . 1 Shots Hit Robots 125 | . 81 44 Core Hits 51 | . 35 16 Critical Kills 1 | . 1 . Critical Parts Destroyed . | . . . Critical Strikes 6 | . 6 . Burn 5 | . 5 . Destroy 1 | . 1 . Melee Attacks . | . . . Impact . | . . . Slashing . | . . . Piercing . | . . . Sneak Attacks . | . . . Combat Hostiles . | . . . Follow-up Attacks . | . . . Damage Inflicted 1751 | . 975 776 Guns 1573 | . 975 598 Cannons 178 | . . 178 Explosions . | . . . Melee . | . . . Ramming . | . . . Kinetic 244 | . 141 103 Thermal 1507 | . 834 673 Explosive . | . . . Electromagnetic . | . . . Impact . | . . . Slashing . | . . . Piercing . | . . . Highest Corruption . | . . . Average Corruption . | . . . Corruption Purged . | . . . Corruption Blocked . | . . . Overload Shots . | . . . Overflow Damage 11 | . . 11 Projectiles 11 | . . 11 Explosions . | . . . Melee . | . . . Knockbacks . | . . . Impact . | . . . Kinetic . | . . . Secondary . | . . . Self-Inflicted Damage . | . . . Shots . | . . . Rammed . | . . . Targets Rammed . | . . . Kicked . | . . . Crushed . | . . . Highest Temperature 77 | . 77 18 Average Temperature 13 | . 14 8 Received Heat Transfer 423 | . 261 162 Siege Activations . | . . . Martial Activations . | . . . Shielding Activations . | . . . Robots Disrupted . | . . . Combat Hostiles . | . . . Robots Corrupted . | . . . Combat Hostiles . | . . . Parts Fried . | . . . Impact Corruptions . | . . . Robots Melted 1 | . 1 . Combat Hostiles 1 | . 1 . Parts Melted 10 | . 9 1 Heat Transferred 3777 | . 2585 1192 Parts Sabotaged . | . . . Parts Stolen . | . . . Parts Stripped . | . . . Power Chain Reactions . | . . . Alert | -11 -10 -10 ------- Run | Yrd Mat Sub Maximum Alert Level . | . . . Low Security (%) 100 | 100 100 . Level 1 . | . . . Level 2 . | . . . Level 3 . | . . . Level 4 . | . . . Level 5 . | . . . High Security . | . . . Max Security . | . . . Peak Influence 64 | . 64 . Initial . | . . . Average 19 | . 21 . Influence Increases 654 | . 419 235 Destroy 0b10 Robot/C 340 | . 240 100 Destroy 0b10 Robot/NC 30 | . 30 . Destroy Leader 64 | . 64 . Successful Hack 25 | . 25 . Lose Combat Pursuer 195 | . 60 135 Influence Decreases 654 | . 371 283 Entered New Map 24 | . . 24 Time Decay 590 | . 361 229 Lost Part 40 | . 10 30 Squads Dispatched 4 | . 4 . Investigation 4 | . 4 . Extermination . | . . . Reinforcement . | . . . Assault . | . . . Garrison . | . . . Intercept . | . . . Searches Triggered . | . . . Construction Impeded . | . . . Haulers Reinforced . | . . . Active Scanning Responses . | . . . Cargo Convoy Interrupts . | . . . Stealth | -11 -10 -10 --------- Run | Yrd Mat Sub Distress Signals 1 | . 1 . Communications Jammed . | . . . Distress Signals . | . . . Times Spotted 37 | . 24 13 Peak Tracking Total 6 | . 4 6 Tactical Retreats 7 | . 4 3 Traps | -11 -10 -10 ------- Run | Yrd Mat Sub Traps Triggered 7 | . 7 . Indirectly . | . . . Trap Hack Attempts . | . . . Triggered . | . . . Disarmed . | . . . Reprogrammed . | . . . Reused . | . . . Traps Extracted . | . . . Installed . | . . . Triggered . | . . . Machines | -11 -10 -10 ---------- Run | Yrd Mat Sub Machines Disabled 1 | . . 1 Max in Single Turn 1 | . . 1 Machines Repaired . | . . . Machines Dismantled . | . . . Machines Sabotaged . | . . . Overloaded Fab Kills . | . . . Hacking | -11 -10 -10 --------- Run | Yrd Mat Sub Machines Accessed 9 | . 8 1 Terminals 6 | . 6 . Fabricators . | . . . Repair Stations 1 | . 1 . Recycling Units 1 | . 1 . Scanalyzers . | . . . Garrison Access . | . . . Total Hacks 33 | . 29 4 Successful 15 | . 11 4 Failed 18 | . 18 . Catastrophic 4 | . 4 . Database Lockouts . | . . . Manual 19 | . 19 . Terminals 25 | . 25 . Fabricators . | . . . Repair Stations 1 | . 1 . Recycling Units 3 | . 3 . Scanalyzers . | . . . Garrison Access . | . . . Terminal Hacks 11 | . 7 4 Record 4 | . . 4 Prototype ID Bank 1 | . 1 . Terminal Index 1 | . 1 . Alert Level 1 | . 1 . Dispatch Records 1 | . 1 . Patrol Status 1 | . 1 . Zone Layout 2 | . 2 . Fabricator Hacks . | . . . Repair Station Hacks . | . . . Recycling Unit Hacks 1 | . 1 . Retrieve Components 1 | . 1 . Scanalyzer . | . . . Garrison Access Hacks . | . . . Unauthorized Hacks 3 | . 3 . Terminals 2 | . 2 . Botnet 2 | . 2 . Fabricators . | . . . Repair Stations 1 | . 1 . Patch 1 | . 1 . Recycling Units . | . . . Scanalyzers . | . . . Garrison Access . | . . . Data Cores Recovered . | . . . Used . | . . . Hacking Detections 7 | . 7 . Full Trace Events 5 | . 5 . Feedback Events . | . . . Feedback Blocked . | . . . Robot Schematics Acquired . | . . . Robots Built . | . . . Authchips . | . . . Time . | . . . Total Robot Build Rating . | . . . Part Schematics Acquired . | . . . Parts Built . | . . . Authchips . | . . . Time . | . . . Total Part Build Rating . | . . . Part Studies Acquired . | . . . Parts Repaired . | . . . Time . | . . . Parts Recycled . | . . . Recycled Matter . | . . . Retrieved Matter . | . . . Retrieved Components 9 | . 9 . Parts Scanalyzed . | . . . Part Schematics Acquired . | . . . Parts Damaged . | . . . Bothacking | -11 -10 -10 ------------ Run | Yrd Mat Sub Used RIF Installer . | . . . Robots Hacked . | . . . Non-combat . | . . . Combat . | . . . Robot Hacks Applied . | . . . Relay Couplers Released . | . . . Fabnet Peak Effective % . | . . . Robots Rewired . | . . . Allies Hacked . | . . . Hacks Repelled . | . . . Allies | -11 -10 -10 -------- Run | Yrd Mat Sub Total Allies . | . . . Largest Group . | . . . Highest-Rated Group . | . . . Highest-Rated Ally . | . . . Total Orders . | . . . Ally Attacks . | . . . Total Damage . | . . . Kills . | . . . Allies Corrupted . | . . . Allies Melted . | . . . Intel | -11 -10 -10 ------- Run | Yrd Mat Sub Active Infowar (turns) 60 | . . 60 Optics 60 | . . 60 Robot Analysis Total . | . . . Derelict Logs Recovered 1 | . . 1 Drone Launches . | . . . Drone Recoveries . | . . . Exploration | -11 -10 -10 ------------- Run | Yrd Mat Sub Turns Passed 2238 | 96 1173 969 Spaces Moved 1286 | 51 719 516 Core 25 | 25 . . Treads . | . . . Legs 1261 | 26 719 516 Wheels . | . . . Hover . | . . . Flight . | . . . Fastest Speed 50 | 50 120 120 Average Speed 139 | 159 120 164 Slowest Speed 250 | 250 190 190 Overloaded Moves . | . . . Propulsion Burnouts . | . . . Robots Hopped . | . . . Potential Cave-ins . | . . . Cave-ins Triggered . | . . . Exploration Rate (%) 35 | 4 56 46 Regions Visited 2 Branch Regions 1 Pre-discovered Areas 1 | . . 1 Known Exits Taken . | . . . Unknown Exits Taken 2 | 1 1 . Scrap Searched 9 | . . 9 Spaces Dug . | . . . Terrain Destroyed . | . . . Melee . | . . . Projectile . | . . . AOE . | . . . Terrain Rammed . | . . . Walls Destroyed . | . . . Machines Disabled . | . . . Actions | -11 -10 -10 --------- Run | Yrd Mat Sub Total 1554 | 62 916 576 Wait 89 | . 87 2 Move 1284 | 50 718 516 Hop . | . . . Pick Up 23 | 6 10 7 Fast Attach 24 | 6 18 . Attach 5 | . 1 4 Detach 2 | . . 2 Swap 13 | . 9 4 Drop 22 | . 15 7 Fire 92 | . 58 34 Melee . | . . . Ram . | . . . Kick . | . . . Crush . | . . . Escape Stasis . | . . . Rewire . | . . . Trap . | . . . Miscellaneous . | . . . Route ------- -11/Scrapyard -10/Materials (discovered 3 exits: [*Mat x2] / *Sub) -10/Subcaves (discovered 1 exit: *Rec) History --------- Turn | Location | Event 12 | -11/Scrapyard | Discovered new exit (range 15) 97 | -11/Scrapyard | Entered Materials 264 | -10/Materials | Discovered new exit (range 12) 313 | -10/Materials | Build established: Mutant 505 | -10/Materials | Discovered new exit (range 14) 1261 | -10/Materials | Discovered new exit (range 8) 1270 | -10/Materials | Entered Subcaves 1349 | -10/Subcaves | Build established: Scavenger-Mutant 1392 | -10/Subcaves | Identified exit to Recycling 1412 | -10/Subcaves | Disturbed a concealed Subdweller 1481 | -10/Subcaves | Core integrity fell below 50% 1542 | -10/Subcaves | Lost 4 parts (1n1u2w) 1782 | -10/Subcaves | Build established: Mutant 1938 | -10/Subcaves | Learned location of Zion (-7) 1938 | -10/Subcaves | Met a Zionite searching for "candidates" 2106 | -10/Subcaves | Visited Clippyterm 2111 | -10/Subcaves | Learned 40 Factory zone layouts 2128 | -10/Subcaves | Shifting Twisted Machinery released Sub. Monowheel 2172 | -10/Subcaves | Core integrity fell below 20% 2239 | -10/Subcaves | Destroyed by IY-JLP(R) with Subdweller Beam Cannon Last Messages --------------- Acquired 20 matter. Searching scrap... Found Piercing Trap. Found Riot Gun. Found 63 Matter. Searching scrap... Found Sub. Beam Cannon. Found 50 Matter. Searching scrap... Found Mak. Hacking Suite. Found Mak. System Shield. Found 38 Matter. Searching scrap... Found Sub. Laser. Found 47 Matter. Searching scrap... Found Spk. Treads. Found 65 Matter. Aluminum Leg destroyed. Dropped Sml. Storage Unit. Map ----- +----------------------------------------------------+ | ??????????#####?### ##?????????????? | | ??????????#"""### ##????????????? | | ??????????#"" ## ##???????????? | | ??????????#"X #???????????? | | ??????????#"" ## #??????????## | | ??????????#"""## #?????????## | | ??????????####### ##?????##### | | ????????????????### ##### ##????### ^ | | ??????????????????# ##?## #????## | | ??????????????????# #?# ###### | | ??????????????????# ##?# # # # #### | | ??????????????????## #??# ##??## | | ???????????????????# ##### #????# | | ??????????????????## ## ##### #????? | | ??????????????##### ######?##### #????? | | ????#######??## "# #### #??####????? | | ??##" """"##?# ="" ##?????????? | | ?##"&" ""### #R "" ??????????? | | ?#" "##*&# ##" # "???????????? | | ##" " ###"!# # "####????????????? | | # ![! " # " [# "" #????????????? | | # %%% # # """#????????????? | | #" ]%#$=# # """"#????????????? | | #" [%$$ # #" # ### """"" ???????????? | | #" & ##%## #### #?? """""????????????? | | # "# #??#@ #??#####"????????????? | | ##" "" "## #?# #????????????????????? | | ?#" """ &## #?# #????????????????????? | | ?## " "## #? #????????????????????? | | ??### " ###? # ##????????????????????? | | ????######???## ###?????????????????????? | | ??????????????? ????????????????????????? | | ??????????????# ????????????????????????? | | ??????????????## ????????????????????????? | | ???????????????# ????????????????????????? | | ???????????????# ????????????????????????? | | ???????????????# ????????????????????????? | | ???????????????# ????????????????????????? | | ???????????????# ????????????????????????? | | ???????????????### ????????????????????????? | | ?????????????????# ????????????????????????? | | ???????????????????????????????????????????? | | ???????????????????????????????????????????? | | ???????????????????????????????????????????? | | ???????????????????????????????????????????? | | ???????????????????????????????????????????? | | ???????????????????????????????????????????? | | ???????????????????????????????????????????? | | ???????????????????????????????????????????? | | ???????????????????????????????????????????? | +----------------------------------------------------+ Best States ------------- Heat Dissipation 39 Energy Generation 15 Energy Capacity 250 Matter Stores 300 Matter Capacity 300 Sight Range 21 Terrain Scan Density 10 Evasion (%) 55 Item Schematics ----------------- None Robot Schematics ------------------ None Fabricated ------------ Nothing Repaired ---------- Nothing Studied --------- None Alien Tech Used ----------------- None Achievements -------------- None Challenges ------------ None Game ------ Seed ElectronSwarmSource Manual? 0 Play Time 00:18:11 Cumulative 17.3 hours Start 2026.07.15 @ 13:20:40 End 2026.07.15 @ 13:35:45 Sessions 1 Manual Loads 0 Difficulty Rogue Special Mode None Game No. 15 Rogue 15 Adventurer 0 Explorer 0 Win Type - Total 0 Types 0/0/0/0/0/0/0/0/0/0 Lore% 21 Gallery% 17 Achievement% 19 Wizard Run 0 Options --------- Layout 0 ASCII 0 Keyboard 1 Movement Vi Keybinds 0 Fullscreen 1 Font 18/SmallcapsGlow Map View 76x50 Zoom Use 0% Tactical HUD 0 Map Filters NONE Filters NONE Steam 1 RUN: 83f2dece-23fd-494e-985d-1722fce0e1fc